[Event "*** Titled Tuesday Blitz"]
[Site "Chess.com"]
[Date "2021.04.20"]
[Round "9"]
[White "Rytenko_V"]
[Black "secretsuperstar7"]
[Result "1-0"]
[WhiteElo "2341"]
[BlackElo "2232"]
[TimeControl "180+1"]
[EndTime "11:45:09 PDT"]
[Termination "Rytenko_V won by resignation"]

1. d4 {[%clk 0:02:51.5]} 1... Nf6 {[%clk 0:02:55.9]} 2. c4 {[%clk 0:02:50.8]}
2... e6 {[%clk 0:02:54]} 3. Nc3 {[%clk 0:02:51.2]} 3... Bb4 {[%clk 0:02:46.1]}
4. Bd2 {[%clk 0:02:51.6]} 4... d5 {[%clk 0:02:42.9]} 5. Nf3 {[%clk 0:02:50.9]}
5... O-O {[%clk 0:02:40]} 6. e3 {[%clk 0:02:51.4]} 6... c5 {[%clk 0:02:29.3]} 7.
a3 {[%clk 0:02:50.5]} 7... Bxc3 {[%clk 0:02:28.6]} 8. Bxc3 {[%clk 0:02:51.4]}
8... cxd4 {[%clk 0:02:27.5]} 9. Bxd4 {[%clk 0:02:50.4]} 9... Nc6 {[%clk
0:02:27]} 10. Be2 {[%clk 0:02:44.5]} 10... Nxd4 {[%clk 0:02:26.2]} 11. Qxd4
{[%clk 0:02:44.5]} 11... dxc4 {[%clk 0:02:17.1]} 12. Bxc4 {[%clk 0:02:43.7]}
12... Bd7 {[%clk 0:02:12.5]} 13. Ne5 {[%clk 0:02:37.5]} 13... Ba4 {[%clk
0:01:48.9]} 14. Qxd8 {[%clk 0:02:24.5]} 14... Rfxd8 {[%clk 0:01:45.6]} 15. b3
{[%clk 0:02:24.9]} 15... Be8 {[%clk 0:01:43.3]} 16. O-O {[%clk 0:02:08]} 16...
a6 {[%clk 0:01:42.2]} 17. Rfd1 {[%clk 0:02:04.1]} 17... Ne4 {[%clk 0:01:33.5]}
18. Nf3 {[%clk 0:01:21]} 18... b5 {[%clk 0:01:28.4]} 19. Bd3 {[%clk 0:01:20.8]}
19... Nc3 {[%clk 0:01:18]} 20. Rd2 {[%clk 0:01:18.2]} 20... h6 {[%clk
0:01:04.8]} 21. Kf1 {[%clk 0:01:11.4]} 21... Rac8 {[%clk 0:00:48.5]} 22. Ke1
{[%clk 0:01:10.4]} 22... Bc6 {[%clk 0:00:47.3]} 23. Rc1 {[%clk 0:00:59.4]} 23...
Bd5 {[%clk 0:00:46.8]} 24. b4 {[%clk 0:00:49.4]} 24... Na4 {[%clk 0:00:33.3]}
25. Rxc8 {[%clk 0:00:39.7]} 25... Rxc8 {[%clk 0:00:32.3]} 26. e4 {[%clk
0:00:35.4]} 26... Bb3 {[%clk 0:00:31.7]} 27. Nd4 {[%clk 0:00:25.4]} 27... Rc1+
{[%clk 0:00:29.7]} 28. Ke2 {[%clk 0:00:25.8]} 28... Nc3+ {[%clk 0:00:21.5]} 29.
Kf3 {[%clk 0:00:25.3]} 29... Bc4 {[%clk 0:00:18.2]} 30. Bxc4 {[%clk 0:00:18.2]}
30... bxc4 {[%clk 0:00:17.9]} 31. Rc2 {[%clk 0:00:18.7]} 31... Rxc2 {[%clk
0:00:17.3]} 32. Nxc2 {[%clk 0:00:19.6]} 32... Nb5 {[%clk 0:00:17]} 33. e5 {[%clk
0:00:15.3]} 33... f6 {[%clk 0:00:13.6]} 34. Ke4 {[%clk 0:00:14.2]} 34... f5+
{[%clk 0:00:12]} 35. Ke3 {[%clk 0:00:12.7]} 35... Kf7 {[%clk 0:00:10.6]} 36. a4
{[%clk 0:00:13.1]} 36... Nc3 {[%clk 0:00:08]} 37. a5 {[%clk 0:00:05.8]} 37...
Nb5 {[%clk 0:00:08]} 38. Nd4 {[%clk 0:00:04.6]} 38... c3 {[%clk 0:00:04.9]} 39.
Nxb5 {[%clk 0:00:03.6]} 39... c2 {[%clk 0:00:05]} 40. Kd2 {[%clk 0:00:02.9]}
40... axb5 {[%clk 0:00:04.2]} 41. a6 {[%clk 0:00:03.4]} 1-0

[Event "*** Titled Tuesday Blitz"]
[Site "Chess.com"]
[Date "2021.04.20"]
[Round "9"]
[White "Beca95"]
[Black "Salem-AR"]
[Result "0-1"]
[WhiteElo "2853"]
[BlackElo "2966"]
[TimeControl "180+1"]
[EndTime "11:45:13 PDT"]
[Termination "Salem-AR won by resignation"]

1. d4 {[%clk 0:03:00.9]} 1... d5 {[%clk 0:02:59.5]} 2. c4 {[%clk 0:03:00.9]}
2... e6 {[%clk 0:02:59.5]} 3. Nf3 {[%clk 0:03:01]} 3... Nf6 {[%clk 0:03:00]} 4.
Nc3 {[%clk 0:03:01.2]} 4... c6 {[%clk 0:02:59.7]} 5. Qb3 {[%clk 0:02:58.2]} 5...
a5 {[%clk 0:02:57.5]} 6. a3 {[%clk 0:02:56.2]} 6... a4 {[%clk 0:02:56.6]} 7. Qc2
{[%clk 0:02:54.4]} 7... Nbd7 {[%clk 0:02:56.4]} 8. Bf4 {[%clk 0:02:49.4]} 8...
dxc4 {[%clk 0:02:52.2]} 9. e4 {[%clk 0:02:48.4]} 9... b5 {[%clk 0:02:52.2]} 10.
Be2 {[%clk 0:02:41.2]} 10... Be7 {[%clk 0:02:50.3]} 11. g4 {[%clk 0:02:39.6]}
11... Nxg4 {[%clk 0:02:38.7]} 12. e5 {[%clk 0:02:37.8]} 12... f5 {[%clk
0:02:18.9]} 13. h3 {[%clk 0:02:33.8]} 13... Nh6 {[%clk 0:02:18.7]} 14. Rg1
{[%clk 0:02:31.9]} 14... Nf7 {[%clk 0:02:02.7]} 15. Rxg7 {[%clk 0:02:30.3]}
15... Nf8 {[%clk 0:01:58.2]} 16. Rg1 {[%clk 0:01:49.1]} 16... Ng6 {[%clk
0:01:55.9]} 17. Be3 {[%clk 0:01:49.4]} 17... Bb7 {[%clk 0:01:51.8]} 18. O-O-O
{[%clk 0:01:48.5]} 18... Qa5 {[%clk 0:01:44.6]} 19. Na2 {[%clk 0:01:41.6]} 19...
O-O-O {[%clk 0:01:36.6]} 20. Kb1 {[%clk 0:01:39.5]} 20... c5 {[%clk 0:01:33]}
21. Ka1 {[%clk 0:01:38.6]} 21... Qa8 {[%clk 0:01:20.5]} 22. Ne1 {[%clk
0:01:08.9]} 22... f4 {[%clk 0:01:13.7]} 23. Bg4 {[%clk 0:01:03.2]} 23... fxe3
{[%clk 0:01:07.5]} 24. Bxe6+ {[%clk 0:01:02.4]} 24... Kb8 {[%clk 0:01:08.3]} 25.
Bxf7 {[%clk 0:00:58.8]} 25... Nxe5 {[%clk 0:00:48.4]} 26. fxe3 {[%clk
0:00:49.6]} 26... Nxf7 {[%clk 0:00:44.3]} 27. Qf5 {[%clk 0:00:50.2]} 27... Rhf8
{[%clk 0:00:41.3]} 28. Nc3 {[%clk 0:00:49.1]} 28... Qa5 {[%clk 0:00:39.7]} 29.
Nc2 {[%clk 0:00:44.1]} 29... Nd6 {[%clk 0:00:33.9]} 30. Qe5 {[%clk 0:00:44]}
30... Qc7 {[%clk 0:00:30.7]} 31. Rg7 {[%clk 0:00:38.7]} 31... Nf5 {[%clk
0:00:30.5]} 32. Qxc7+ {[%clk 0:00:31.7]} 32... Kxc7 {[%clk 0:00:31.4]} 33. Rxh7
{[%clk 0:00:32.1]} 33... cxd4 {[%clk 0:00:27.8]} 34. exd4 {[%clk 0:00:29.6]}
34... Rh8 {[%clk 0:00:23.5]} 35. Rf7 {[%clk 0:00:24.9]} 35... Rdf8 {[%clk
0:00:23.9]} 36. Nxb5+ {[%clk 0:00:22.7]} 36... Kd7 {[%clk 0:00:21.6]} 37. Rxf8
{[%clk 0:00:21.8]} 37... Rxf8 {[%clk 0:00:22.3]} 38. Nc3 {[%clk 0:00:22]} 38...
Rh8 {[%clk 0:00:20.5]} 39. Nxa4 {[%clk 0:00:19.9]} 39... Rxh3 {[%clk 0:00:20.7]}
40. Nc3 {[%clk 0:00:20.3]} 40... Ne3 {[%clk 0:00:18.2]} 41. Nxe3 {[%clk
0:00:19.8]} 41... Rxe3 {[%clk 0:00:19.1]} 42. Ka2 {[%clk 0:00:20.4]} 42... Rd3
{[%clk 0:00:17.7]} 43. Rxd3 {[%clk 0:00:19.8]} 43... cxd3 {[%clk 0:00:18.6]} 44.
Kb1 {[%clk 0:00:20.1]} 44... Bg5 {[%clk 0:00:18.6]} 45. b4 {[%clk 0:00:18.3]}
45... Bf3 {[%clk 0:00:18.5]} 46. d5 {[%clk 0:00:16.8]} 46... Bf6 {[%clk
0:00:16.6]} 0-1

[Event "*** Titled Tuesday Blitz"]
[Site "Chess.com"]
[Date "2021.04.20"]
[Round "9"]
[White "RzayevB"]
[Black "frederiksvane"]
[Result "0-1"]
[WhiteElo "2616"]
[BlackElo "2763"]
[TimeControl "180+1"]
[EndTime "11:45:16 PDT"]
[Termination "frederiksvane won on time"]

1. e4 {[%clk 0:03:00.9]} 1... c5 {[%clk 0:03:00]} 2. Nf3 {[%clk 0:02:58.4]} 2...
g6 {[%clk 0:02:59.4]} 3. g3 {[%clk 0:02:57.2]} 3... Nc6 {[%clk 0:02:59]} 4. Bg2
{[%clk 0:02:57.4]} 4... Bg7 {[%clk 0:02:59.1]} 5. O-O {[%clk 0:02:57.6]} 5... e5
{[%clk 0:02:58.9]} 6. c3 {[%clk 0:02:57.3]} 6... Nge7 {[%clk 0:02:58.5]} 7. d3
{[%clk 0:02:57.5]} 7... O-O {[%clk 0:02:57.9]} 8. a3 {[%clk 0:02:57.9]} 8... a5
{[%clk 0:02:51.7]} 9. a4 {[%clk 0:02:57.2]} 9... d6 {[%clk 0:02:45]} 10. Na3
{[%clk 0:02:56.6]} 10... h6 {[%clk 0:02:42.7]} 11. Nb5 {[%clk 0:02:45.4]} 11...
Na7 {[%clk 0:02:33]} 12. Nd2 {[%clk 0:02:42.5]} 12... Nxb5 {[%clk 0:02:23.4]}
13. axb5 {[%clk 0:02:43.4]} 13... b6 {[%clk 0:02:22.9]} 14. Nc4 {[%clk
0:02:42.1]} 14... Qc7 {[%clk 0:02:18.4]} 15. f4 {[%clk 0:02:41.1]} 15... Be6
{[%clk 0:02:12.8]} 16. Qe2 {[%clk 0:02:32.1]} 16... Rae8 {[%clk 0:01:47.4]} 17.
Bd2 {[%clk 0:02:31.6]} 17... exf4 {[%clk 0:01:43]} 18. gxf4 {[%clk 0:02:25.1]}
18... d5 {[%clk 0:01:40.6]} 19. Ne5 {[%clk 0:02:19.4]} 19... dxe4 {[%clk
0:01:36.2]} 20. dxe4 {[%clk 0:02:15.6]} 20... f5 {[%clk 0:01:24.9]} 21. Rae1
{[%clk 0:01:59.7]} 21... Kh7 {[%clk 0:01:22.7]} 22. h4 {[%clk 0:01:53.8]} 22...
Bxe5 {[%clk 0:01:10.7]} 23. fxe5 {[%clk 0:01:53.4]} 23... Qxe5 {[%clk
0:01:08.9]} 24. exf5 {[%clk 0:01:47.6]} 24... Qxe2 {[%clk 0:01:02.2]} 25. fxg6+
{[%clk 0:01:47.7]} 25... Nxg6 {[%clk 0:01:01.6]} 26. Rxe2 {[%clk 0:01:47.4]}
26... Rxf1+ {[%clk 0:00:59]} 27. Bxf1 {[%clk 0:01:48.3]} 27... Nxh4 {[%clk
0:00:58]} 28. Rf2 {[%clk 0:01:19]} 28... Bd5 {[%clk 0:00:53.9]} 29. Bd3+ {[%clk
0:01:07.9]} 29... Kg7 {[%clk 0:00:51.5]} 30. c4 {[%clk 0:00:40.6]} 30... Nf3+
{[%clk 0:00:40.7]} 31. Kg2 {[%clk 0:00:18.4]} 31... Ne1+ {[%clk 0:00:36.4]} 32.
Kh2 {[%clk 0:00:09.8]} 32... Nxd3 {[%clk 0:00:36]} 33. Bc3+ {[%clk 0:00:09.7]}
33... Kh7 {[%clk 0:00:29.1]} 34. Rf6 {[%clk 0:00:08.4]} 34... Be6 {[%clk
0:00:08.9]} 35. b3 {[%clk 0:00:06.8]} 35... Nc1 {[%clk 0:00:07]} 36. Bd2 {[%clk
0:00:06.1]} 36... Nxb3 {[%clk 0:00:06.7]} 37. Rxh6+ {[%clk 0:00:06.2]} 37... Kg7
{[%clk 0:00:06.7]} 38. Bg5 {[%clk 0:00:06.3]} 38... Nd4 {[%clk 0:00:05.2]} 39.
Kg2 {[%clk 0:00:02.7]} 39... Rg8 {[%clk 0:00:02.5]} 0-1

[Event "*** Titled Tuesday Blitz"]
[Site "Chess.com"]
[Date "2021.04.20"]
[Round "9"]
[White "Korchmar_Vasiliy"]
[Black "AlexTriapishko"]
[Result "1-0"]
[WhiteElo "2675"]
[BlackElo "2883"]
[TimeControl "180+1"]
[EndTime "11:45:18 PDT"]
[Termination "Korchmar_Vasiliy won by checkmate"]

1. d4 {[%clk 0:03:00.9]} 1... Nf6 {[%clk 0:02:44.8]} 2. Nf3 {[%clk 0:03:00.3]}
2... e6 {[%clk 0:02:44.9]} 3. Bf4 {[%clk 0:03:00.7]} 3... c5 {[%clk 0:02:44.5]}
4. c3 {[%clk 0:03:00.9]} 4... b6 {[%clk 0:02:44.5]} 5. e3 {[%clk 0:02:59.5]}
5... Bb7 {[%clk 0:02:44.2]} 6. a3 {[%clk 0:02:59.3]} 6... Be7 {[%clk 0:02:42.9]}
7. h3 {[%clk 0:02:59.1]} 7... O-O {[%clk 0:02:42.7]} 8. Nbd2 {[%clk 0:02:59.3]}
8... d6 {[%clk 0:02:41.1]} 9. Bd3 {[%clk 0:02:57.8]} 9... Nbd7 {[%clk
0:02:33.6]} 10. Qe2 {[%clk 0:02:57.9]} 10... a6 {[%clk 0:02:25.7]} 11. O-O
{[%clk 0:02:56.7]} 11... b5 {[%clk 0:02:25.5]} 12. e4 {[%clk 0:02:55.9]} 12...
cxd4 {[%clk 0:01:49.3]} 13. cxd4 {[%clk 0:02:56.8]} 13... g6 {[%clk 0:01:49.9]}
14. Rad1 {[%clk 0:02:55.8]} 14... Rc8 {[%clk 0:01:45.9]} 15. Bh6 {[%clk
0:02:37]} 15... Re8 {[%clk 0:01:43]} 16. e5 {[%clk 0:02:14.7]} 16... dxe5 {[%clk
0:01:39.7]} 17. dxe5 {[%clk 0:02:15.6]} 17... Nd5 {[%clk 0:01:39.7]} 18. Ne4
{[%clk 0:02:15.6]} 18... Nc5 {[%clk 0:01:39.9]} 19. Bb1 {[%clk 0:01:26.9]} 19...
Nxe4 {[%clk 0:01:35.3]} 20. Bxe4 {[%clk 0:01:27.8]} 20... Rc4 {[%clk 0:01:26.5]}
21. Bd3 {[%clk 0:01:16.6]} 21... Rc7 {[%clk 0:01:13.7]} 22. Be4 {[%clk
0:01:14.5]} 22... Rc4 {[%clk 0:00:49.4]} 23. Rfe1 {[%clk 0:01:10.1]} 23... Qc7
{[%clk 0:00:36.2]} 24. Rc1 {[%clk 0:00:57.8]} 24... Rc8 {[%clk 0:00:29.3]} 25.
Bxd5 {[%clk 0:00:38.3]} 25... Bxd5 {[%clk 0:00:26.5]} 26. Rxc4 {[%clk
0:00:38.8]} 26... bxc4 {[%clk 0:00:20.2]} 27. Ng5 {[%clk 0:00:32.6]} 27... Qb7
{[%clk 0:00:19.7]} 28. Qg4 {[%clk 0:00:32.5]} 28... Bf8 {[%clk 0:00:13]} 29. Qh4
{[%clk 0:00:24.5]} 29... Be7 {[%clk 0:00:09.1]} 30. Qf4 {[%clk 0:00:19.2]} 30...
Bf8 {[%clk 0:00:09.1]} 31. Bxf8 {[%clk 0:00:08.7]} 31... Rxf8 {[%clk 0:00:08.9]}
32. Qh4 {[%clk 0:00:06.1]} 32... h5 {[%clk 0:00:06.8]} 33. g4 {[%clk 0:00:03.6]}
33... Qxb2 {[%clk 0:00:04.1]} 34. gxh5 {[%clk 0:00:03.7]} 34... Qc3 {[%clk
0:00:04.6]} 35. Re3 {[%clk 0:00:03.3]} 35... Qa1+ {[%clk 0:00:03.3]} 36. Kh2
{[%clk 0:00:03.5]} 36... Qh1+ {[%clk 0:00:03.5]} 37. Kg3 {[%clk 0:00:04.1]}
37... Qg2+ {[%clk 0:00:02.1]} 38. Kf4 {[%clk 0:00:04.7]} 38... Kg7 {[%clk
0:00:02.1]} 39. h6+ {[%clk 0:00:01.7]} 39... Kh8 {[%clk 0:00:02.1]} 40. Ne4
{[%clk 0:00:01.4]} 40... Bxe4 {[%clk 0:00:01.6]} 41. Qf6+ {[%clk 0:00:01.2]}
41... Kh7 {[%clk 0:00:01.7]} 42. Qg7# {[%clk 0:00:02.1]} 1-0

[Event "*** Titled Tuesday Blitz"]
[Site "Chess.com"]
[Date "2021.04.20"]
[Round "9"]
[White "yuki_chess123"]
[Black "CM_rui"]
[Result "1-0"]
[WhiteElo "2278"]
[BlackElo "2453"]
[TimeControl "180+1"]
[EndTime "11:45:18 PDT"]
[Termination "yuki_chess123 won by checkmate"]

1. e4 {[%clk 0:02:59.6]} 1... e5 {[%clk 0:03:00]} 2. Nf3 {[%clk 0:02:59.2]} 2...
Nc6 {[%clk 0:03:00.4]} 3. Bb5 {[%clk 0:02:59.2]} 3... a6 {[%clk 0:03:00.9]} 4.
Bxc6 {[%clk 0:02:59.1]} 4... dxc6 {[%clk 0:03:01.8]} 5. Nc3 {[%clk 0:02:59]}
5... Bg4 {[%clk 0:03:00.7]} 6. h3 {[%clk 0:02:58.2]} 6... Bxf3 {[%clk
0:02:58.3]} 7. Qxf3 {[%clk 0:02:58.3]} 7... Nf6 {[%clk 0:02:58.5]} 8. d3 {[%clk
0:02:57.7]} 8... Bb4 {[%clk 0:02:55]} 9. Qg3 {[%clk 0:02:56.6]} 9... Qd6 {[%clk
0:02:40.8]} 10. O-O {[%clk 0:02:43.8]} 10... O-O-O {[%clk 0:02:35.4]} 11. f4
{[%clk 0:02:41.5]} 11... Bxc3 {[%clk 0:02:22.2]} 12. bxc3 {[%clk 0:02:38.9]}
12... Qc5+ {[%clk 0:02:20.6]} 13. Be3 {[%clk 0:02:38.4]} 13... exf4 {[%clk
0:02:03]} 14. Bxc5 {[%clk 0:02:17.3]} 14... fxg3 {[%clk 0:02:01.9]} 15. Be7
{[%clk 0:02:17.7]} 15... Rd7 {[%clk 0:01:48.1]} 16. Bxf6 {[%clk 0:02:17.7]}
16... gxf6 {[%clk 0:01:49]} 17. Rxf6 {[%clk 0:02:17.9]} 17... Rg8 {[%clk
0:01:48.2]} 18. Raf1 {[%clk 0:02:17.1]} 18... Rg7 {[%clk 0:01:48.3]} 19. R1f3
{[%clk 0:02:17]} 19... c5 {[%clk 0:01:38.5]} 20. c4 {[%clk 0:02:10.6]} 20... c6
{[%clk 0:01:34.7]} 21. R3f5 {[%clk 0:02:08.5]} 21... Kc7 {[%clk 0:01:24.1]} 22.
Rxc5 {[%clk 0:02:08]} 22... Kb6 {[%clk 0:01:17]} 23. Rcf5 {[%clk 0:02:05.3]}
23... a5 {[%clk 0:01:10.2]} 24. a4 {[%clk 0:02:04.3]} 24... Ka6 {[%clk
0:01:05.7]} 25. Kf1 {[%clk 0:02:01.9]} 25... Kb6 {[%clk 0:01:01.1]} 26. Ke2
{[%clk 0:01:59.9]} 26... Re7 {[%clk 0:00:56.2]} 27. Kf3 {[%clk 0:01:58.3]} 27...
Ka6 {[%clk 0:00:55.4]} 28. Kf4 {[%clk 0:01:49.3]} 28... Rc7 {[%clk 0:00:49.2]}
29. h4 {[%clk 0:01:36.6]} 29... b6 {[%clk 0:00:46.1]} 30. Rg5 {[%clk 0:01:26.9]}
30... Rxg5 {[%clk 0:00:43.2]} 31. hxg5 {[%clk 0:01:26.3]} 31... Kb7 {[%clk
0:00:39.6]} 32. Rh6 {[%clk 0:01:18.1]} 32... b5 {[%clk 0:00:39.2]} 33. cxb5
{[%clk 0:01:15.7]} 33... cxb5 {[%clk 0:00:40.1]} 34. axb5 {[%clk 0:01:13]} 34...
Rxc2 {[%clk 0:00:37]} 35. Kxg3 {[%clk 0:01:08.5]} 35... Rc3 {[%clk 0:00:34.8]}
36. Rxh7 {[%clk 0:01:05.5]} 36... Rxd3+ {[%clk 0:00:34.9]} 37. Kf4 {[%clk
0:01:05.6]} 37... a4 {[%clk 0:00:28.8]} 38. g6 {[%clk 0:01:02.9]} 38... a3
{[%clk 0:00:23]} 39. Rxf7+ {[%clk 0:00:58.2]} 39... Kb6 {[%clk 0:00:23]} 40. g7
{[%clk 0:00:52.6]} 40... a2 {[%clk 0:00:15.8]} 41. g8=Q {[%clk 0:00:49.8]} 41...
a1=Q {[%clk 0:00:15.8]} 42. Qb8+ {[%clk 0:00:48.8]} 42... Kc5 {[%clk 0:00:13.8]}
43. Qe5+ {[%clk 0:00:47.1]} 43... Qxe5+ {[%clk 0:00:13]} 44. Kxe5 {[%clk
0:00:47.2]} 44... Kxb5 {[%clk 0:00:12.5]} 45. g4 {[%clk 0:00:46.1]} 45... Kc5
{[%clk 0:00:11.7]} 46. g5 {[%clk 0:00:45.9]} 46... Rg3 {[%clk 0:00:12.2]} 47.
Rg7 {[%clk 0:00:45.5]} 47... Rg1 {[%clk 0:00:12.4]} 48. g6 {[%clk 0:00:45.8]}
48... Kc6 {[%clk 0:00:12.7]} 49. Ke6 {[%clk 0:00:43.2]} 49... Rg4 {[%clk
0:00:13.3]} 50. e5 {[%clk 0:00:43.5]} 50... Rg5 {[%clk 0:00:13.9]} 51. Rg8
{[%clk 0:00:43.3]} 51... Rg1 {[%clk 0:00:13]} 52. g7 {[%clk 0:00:43.5]} 52...
Kc7 {[%clk 0:00:11.7]} 53. Ke7 {[%clk 0:00:43.2]} 53... Rg5 {[%clk 0:00:10]} 54.
Kf6 {[%clk 0:00:42.7]} 54... Rg2 {[%clk 0:00:09.9]} 55. Ra8 {[%clk 0:00:42]}
55... Rf2+ {[%clk 0:00:08.9]} 56. Ke6 {[%clk 0:00:42]} 56... Kb7 {[%clk
0:00:02.6]} 57. g8=Q {[%clk 0:00:39.1]} 57... Rc2 {[%clk 0:00:03.5]} 58. Qb8+
{[%clk 0:00:38.1]} 58... Kc6 {[%clk 0:00:04]} 59. Qc8+ {[%clk 0:00:38.4]} 59...
Kb5 {[%clk 0:00:04.5]} 60. Qxc2 {[%clk 0:00:37.5]} 60... Kb4 {[%clk 0:00:05.1]}
61. Rb8+ {[%clk 0:00:37]} 61... Ka5 {[%clk 0:00:05]} 62. Qa2# {[%clk 0:00:36.9]}
1-0

[Event "*** Titled Tuesday Blitz"]
[Site "Chess.com"]
[Date "2021.04.20"]
[Round "9"]
[White "zubridis"]
[Black "Vuk2000"]
[Result "0-1"]
[WhiteElo "2553"]
[BlackElo "2736"]
[TimeControl "180+1"]
[EndTime "11:45:21 PDT"]
[Termination "Vuk2000 won on time"]

1. e4 {[%clk 0:03:00.9]} 1... e6 {[%clk 0:03:00.1]} 2. d4 {[%clk 0:02:59.6]}
2... d5 {[%clk 0:03:00.4]} 3. Nd2 {[%clk 0:02:59.7]} 3... Be7 {[%clk 0:03:00.3]}
4. Ngf3 {[%clk 0:02:56.2]} 4... Nf6 {[%clk 0:03:00.4]} 5. Bd3 {[%clk 0:02:52.3]}
5... c5 {[%clk 0:02:59.8]} 6. e5 {[%clk 0:02:50.4]} 6... Nfd7 {[%clk 0:02:59.5]}
7. c3 {[%clk 0:02:50.2]} 7... b6 {[%clk 0:02:59.3]} 8. a4 {[%clk 0:02:41.4]}
8... Ba6 {[%clk 0:02:57.6]} 9. Bb5 {[%clk 0:02:41]} 9... O-O {[%clk 0:02:54.3]}
10. O-O {[%clk 0:02:40]} 10... Qc8 {[%clk 0:02:49]} 11. Qe2 {[%clk 0:02:38.9]}
11... Bxb5 {[%clk 0:02:26.6]} 12. axb5 {[%clk 0:02:37.1]} 12... cxd4 {[%clk
0:02:26.8]} 13. Nxd4 {[%clk 0:02:29.4]} 13... Bc5 {[%clk 0:02:12.6]} 14. N2b3
{[%clk 0:02:25.6]} 14... Bxd4 {[%clk 0:02:06.5]} 15. Nxd4 {[%clk 0:02:25]} 15...
Qc4 {[%clk 0:02:06.5]} 16. Qe3 {[%clk 0:02:03.2]} 16... Nc5 {[%clk 0:02:04.8]}
17. Rd1 {[%clk 0:01:51.1]} 17... Nbd7 {[%clk 0:01:34.5]} 18. Ra3 {[%clk
0:01:49.8]} 18... Nb7 {[%clk 0:01:07.5]} 19. Qg3 {[%clk 0:01:46]} 19... Kh8
{[%clk 0:01:02.6]} 20. Bf4 {[%clk 0:01:33.1]} 20... a5 {[%clk 0:00:49.3]} 21.
bxa6 {[%clk 0:01:30.9]} 21... Na5 {[%clk 0:00:42.3]} 22. Rda1 {[%clk 0:01:09.6]}
22... Nc5 {[%clk 0:00:32.8]} 23. Qe3 {[%clk 0:00:51.5]} 23... Nab3 {[%clk
0:00:21.4]} 24. Nxb3 {[%clk 0:00:48.5]} 24... Nxb3 {[%clk 0:00:21.3]} 25. Ra4
{[%clk 0:00:32.1]} 25... Qc6 {[%clk 0:00:13.1]} 26. R1a3 {[%clk 0:00:25]} 26...
Nc5 {[%clk 0:00:11.3]} 27. Rb4 {[%clk 0:00:25.1]} 27... Rfb8 {[%clk 0:00:10.6]}
28. h4 {[%clk 0:00:19]} 28... Rxa6 {[%clk 0:00:10.6]} 29. Rxa6 {[%clk
0:00:16.1]} 29... Nxa6 {[%clk 0:00:11.5]} 30. Rd4 {[%clk 0:00:15.8]} 30... Nc5
{[%clk 0:00:12.1]} 31. h5 {[%clk 0:00:15.7]} 31... Nb3 {[%clk 0:00:10.7]} 32.
Rb4 {[%clk 0:00:14.3]} 32... Na5 {[%clk 0:00:07.1]} 33. h6 {[%clk 0:00:13.7]}
33... Nc4 {[%clk 0:00:06.9]} 34. Qg3 {[%clk 0:00:11.7]} 34... Rg8 {[%clk
0:00:06.3]} 35. hxg7+ {[%clk 0:00:10.9]} 35... Rxg7 {[%clk 0:00:06.3]} 36. Qh4
{[%clk 0:00:09.1]} 36... Qe8 {[%clk 0:00:05.9]} 37. Qf6 {[%clk 0:00:06.9]} 37...
Kg8 {[%clk 0:00:05.6]} 38. b3 {[%clk 0:00:02.7]} 38... Rg6 {[%clk 0:00:06]} 39.
Qh4 {[%clk 0:00:02.6]} 39... Nb2 {[%clk 0:00:06.2]} 40. Rxb6 {[%clk 0:00:02.6]}
40... Nd3 {[%clk 0:00:06.8]} 41. Rd6 {[%clk 0:00:02.3]} 41... Kg7 {[%clk
0:00:02.5]} 42. Bg5 {[%clk 0:00:01.2]} 42... Nxe5 {[%clk 0:00:02.1]} 0-1

[Event "*** Titled Tuesday Blitz"]
[Site "Chess.com"]
[Date "2021.04.20"]
[Round "9"]
[White "Artyom_ChessMate"]
[Black "vovachesss"]
[Result "1-0"]
[WhiteElo "2561"]
[BlackElo "2680"]
[TimeControl "180+1"]
[EndTime "11:45:21 PDT"]
[Termination "Artyom_ChessMate won by resignation"]

1. e4 {[%clk 0:03:00.9]} 1... e5 {[%clk 0:02:59.6]} 2. Nf3 {[%clk 0:02:59.8]}
2... d5 {[%clk 0:03:00.2]} 3. Nxe5 {[%clk 0:02:57.9]} 3... Bd6 {[%clk
0:02:59.8]} 4. d4 {[%clk 0:02:49.6]} 4... dxe4 {[%clk 0:03:00.1]} 5. Bc4 {[%clk
0:02:49.2]} 5... Bxe5 {[%clk 0:03:00]} 6. Qh5 {[%clk 0:02:48.7]} 6... Qe7 {[%clk
0:02:59.8]} 7. Qxe5 {[%clk 0:02:48.6]} 7... Qxe5 {[%clk 0:02:58.7]} 8. dxe5
{[%clk 0:02:49.5]} 8... Nc6 {[%clk 0:02:59.5]} 9. Nc3 {[%clk 0:02:16.3]} 9...
Nxe5 {[%clk 0:02:53.5]} 10. Bb3 {[%clk 0:02:16.1]} 10... Bf5 {[%clk 0:02:46.3]}
11. Bf4 {[%clk 0:02:10.7]} 11... f6 {[%clk 0:02:46.8]} 12. O-O-O {[%clk
0:02:06.3]} 12... c6 {[%clk 0:02:45.5]} 13. Rhe1 {[%clk 0:02:03.6]} 13... Rd8
{[%clk 0:02:39]} 14. Nxe4 {[%clk 0:01:57.5]} 14... Rxd1+ {[%clk 0:02:35.4]} 15.
Kxd1 {[%clk 0:01:56.7]} 15... Bxe4 {[%clk 0:02:29]} 16. Rxe4 {[%clk 0:01:57.6]}
16... Ne7 {[%clk 0:02:27.9]} 17. Bxe5 {[%clk 0:01:56.3]} 17... fxe5 {[%clk
0:02:27.3]} 18. Rxe5 {[%clk 0:01:57.2]} 18... Kd7 {[%clk 0:02:27.3]} 19. c3
{[%clk 0:01:54.4]} 19... Rd8 {[%clk 0:02:25.2]} 20. f3 {[%clk 0:01:42.4]} 20...
Ng6 {[%clk 0:02:21.4]} 21. Re4 {[%clk 0:01:39.9]} 21... b5 {[%clk 0:02:15.2]}
22. Ke2 {[%clk 0:01:39.6]} 22... a5 {[%clk 0:02:13.7]} 23. a4 {[%clk 0:01:39.5]}
23... Rf8 {[%clk 0:02:10]} 24. g3 {[%clk 0:01:34.4]} 24... Kd6 {[%clk 0:02:04]}
25. h4 {[%clk 0:01:33.6]} 25... Ne5 {[%clk 0:02:03.2]} 26. f4 {[%clk 0:01:28.1]}
26... Nd7 {[%clk 0:02:03.3]} 27. Re6+ {[%clk 0:01:25]} 27... Kc5 {[%clk
0:01:59]} 28. Re7 {[%clk 0:01:25.9]} 28... bxa4 {[%clk 0:01:58.9]} 29. Bxa4
{[%clk 0:01:17.3]} 29... Nb6 {[%clk 0:01:58.1]} 30. Bc2 {[%clk 0:01:17.3]} 30...
Nd5 {[%clk 0:01:22]} 31. Rxg7 {[%clk 0:01:15.8]} 31... Rb8 {[%clk 0:01:22.6]}
32. b4+ {[%clk 0:01:00.6]} 32... axb4 {[%clk 0:01:21]} 33. cxb4+ {[%clk
0:01:01.5]} 33... Rxb4 {[%clk 0:01:19.4]} 34. Bxh7 {[%clk 0:01:02.4]} 34... Kd4
{[%clk 0:01:13.8]} 35. Rd7 {[%clk 0:00:58.4]} 35... Rb2+ {[%clk 0:01:09.4]} 36.
Kf3 {[%clk 0:00:58.1]} 36... Rb3+ {[%clk 0:01:09.8]} 37. Kg4 {[%clk 0:00:56.2]}
37... Ke3 {[%clk 0:01:10.7]} 38. Kg5 {[%clk 0:00:39.5]} 38... Kf3 {[%clk
0:01:04.7]} 39. Bg8 {[%clk 0:00:34.2]} 39... Rb5 {[%clk 0:00:11.3]} 40. Bxd5+
{[%clk 0:00:32.7]} 40... cxd5 {[%clk 0:00:12.2]} 41. g4 {[%clk 0:00:29.2]} 41...
Ke4 {[%clk 0:00:12.5]} 42. Re7+ {[%clk 0:00:27.1]} 42... Kf3 {[%clk 0:00:10.6]}
43. h5 {[%clk 0:00:25.1]} 43... d4+ {[%clk 0:00:10.6]} 44. f5 {[%clk 0:00:25.3]}
44... d3 {[%clk 0:00:11]} 45. Rd7 {[%clk 0:00:24.7]} 45... Ke4 {[%clk
0:00:11.4]} 46. h6 {[%clk 0:00:22.7]} 46... Rb8 {[%clk 0:00:11.1]} 47. h7 {[%clk
0:00:22]} 47... Ke3 {[%clk 0:00:08.7]} 48. Kg6 {[%clk 0:00:21.6]} 48... d2
{[%clk 0:00:09.1]} 49. g5 {[%clk 0:00:19.6]} 49... Ke2 {[%clk 0:00:06.1]} 50. f6
{[%clk 0:00:19.5]} 50... Rh8 {[%clk 0:00:03.9]} 51. Kg7 {[%clk 0:00:18.9]} 51...
Rd8 {[%clk 0:00:03.9]} 52. Rxd8 {[%clk 0:00:18.7]} 1-0